Workbook

Sheet Cover Page
D1: Add company logo
N2: Version 23.4a (for incinerators) - 15/11/2023
N4: Note that there is another version of this template available for co-incinerators
B8: Add photo
N13: Notes:
N14: This template may require adjustments by individual operators to meet specific reporting requirements as defined in the site Permit(s)
B29: Annual Performance Report 2023
B31: Permit EPR/FP3739FS
B33: Lincolnshire Energy from Waste Facility
B37: FCC Environment (Lincolnshire) Limited
B39: Year: | C39: 2023
B41: Address: | C41: Paving Way, Off Whisby Road, North Hykeham, Lincoln, LN63QW
B43: Tel: | C43: 1522814315
B45: Email:
B47: Prepared by: | C47: Leigh Hornsby | F47: Position: | G47: Environment Manager
B49: Approved by: | C49: Juergen Schaper | F49: Position: | G49: General Manager
B51: Version: | C51: 1
B53: Issue Date: | C53: 30.01.2023

Sheet Contents
A1: =+'Cover Page'!$B$29 -> Annual Performance Report 2023 | E1: =+'Cover Page'!$B$33 -> Lincolnshire Energy from Waste Facility
A3: Contents | K3: Notes:
A4: Section | B4: Subject | H4: Page | K4: Section references and Page nos. to be inserted
B5: Facility Information | K5: Sections and Subjects may require adjustment by individual operators to meet specific reporting requirements as defined in the sites Permit(s)
B6: Operational Data
B7: Operational Summary
B8: Performance Form 1
B9: Energy Form 1
B10: Permit Compliance
B11: Improvements
B12: Public Liasion
B13: Carbon dioxide and nitrous oxide emissions
B14: Residue Quality
B15: Emissions to Water
B16: Emissions to Air (periodically monitored)
B17: Emissions to Air (continuously monitored)
B18: Hydrogen Chloride emissions
B19: Sulphur Dioxdie emsissions
B20: Oxides of Notrigen emissions
B21: Total Organic Carbon emissions
B22: Particulate Matter emissions
B23: Carbon Monoxide emissions
B24: Ammonia emissions
A27: Version Control
A28: Section | B28: Information | H28: Date
A35: Distribution
A36: Copy | B36: Name, Role | H36: No.
A45: This report is required under the Industrial Emissions Directive’s Article 55(2) requirements on reporting and public information on waste incineration plants and co-incineration plants, which require the operator to produce an annual report on the functioning and monitoring of the plant and make it available to the public.

Sheet Facility Info
A1: =+'Cover Page'!$B$29 -> Annual Performance Report 2023 | E1: =+'Cover Page'!$B$33 -> Lincolnshire Energy from Waste Facility
A3: Plant Description and Design | K3: Notes:
A5: The EFW facility has a total capacity of approximately 49.7 MW (thermal input) and is capable of generating up to 13.1 MWe of electrical power, the majority of which is exported to the National Grid. Provision has been made to supply additional heat in the form of up to 10 MWth when a commercial scheme becomes available to take the heat. The facility consists of one incinerator line with a total annual permitted capacity of 190,000 tonnes per year | K5: Include summary of plant design, design capacity, no. of combustion lines, electrical and heat capacity and any other general information that descibes the facility, its location and purpose
A20: Summary of Operational Processes and Procedures
A22: Waste material burned at the facility is residual municipal solid waste (i.e. waste that has had recyclable and re-usable materials source segregated) and commercial and industrial (C&I) waste derived from residential, commercial and industrial sources. All waste material for processing received at the facility is non-hazardous. Waste material arrives by road and is weighed before proceeding into the tipping hall where it is tipped into the waste bunker of sufficient capacity to hold several days waste inputs. Moving grate technology is used for burning the waste material. The furnace design ensures that a temperature of at least 850°C for a period of at least two seconds is achieved in the combustion chamber. To ensure that the temperature does not fall below 850°C auxiliary burners firing fuel oil are automatically triggered by online process monitoring equipment. Hot gases from the furnace pass into a boiler. Steam raised in the boiler is passed to a turbine to generate electricity. Combustion gases are cleaned before they are released to atmosphere. There are four components to the gas cleaning abatement technique; - Selective Non-Catalytic Reduction (SNCR) involving the injection of ammonia into the combustion chamber above the flame providing for the abatement of nitrogen oxides. - Dry hydrated lime re-agent injected to neutralise acid gas compounds. - Activated carbon injected to absorb heavy metals, dioxins and furans. - Bag filtration to remove fine particulates. The residues of the bag filters are collected and directed to a residues silo. Part of the residues are recycled to the reagent injection points to ensure maximum usage of the lime content. Cleaned flue gases exiting the abatement system of the incinerator line are discharged through the 75m tall stack. Gases are continuously monitored for particulate matter, oxides of nitrogen, sulphur dioxide, carbon monoxide, total organic carbon, hydrogen chloride, nitrous oxide, carbon dioxide and ammonia. Monitoring for heavy metals, dioxins and hydrogen fluoride is carried out periodically. Under normal circumstances there are no liquid effluent emissions from the incinerator. Water arising from boiler blowdown and water treatment backwash is recycled to the Incinerator Bottom Ash (IBA) quench. Water surplus to the requirements of quenching is discharged to the sewerage system. All plant areas are surfaced to the appropriate standards for the activities within those areas. All liquid tanks and drums whose emissions to water or land could cause pollution, are contained in adequate bunding constructed in line with industry best practice standards and sized to contain 110% of the contents of the largest tank or 25% of the total tonnage within the bund; whichever is the larger. Materials used for surfacing of process areas and bunds are resistant to the materials they may come into contact with. There are no direct discharges to groundwater from the facility. The solid residues produced by the EFW facility are Incinerator Bottom Ash (IBA) and Air Pollution Control (APC) residues. APC residues are hazardous and sent for treatment before landfill disposal. IBA is sent for separation and recycling of the metal content; with the remaining ash being used as a substitute aggregate. | K22: Include summary of key processes and procedures such as (but not limited to); waste reception, control rooms, grate, bed and bolier, energy & heat generation, cooling systems, residue management, emission controls, health and safety systems, maintenance

Sheet Operational Data
A1: =+'Cover Page'!$B$29 -> Annual Performance Report 2023 | E1: =+'Cover Page'!$B$33 -> Lincolnshire Energy from Waste Facility
A3: Operational Data
A4: Plant Size | B4: 190000 | D4: tonnes pa | F4: MWth | G4: 13.1 | H4: MWe | J4: Notes:
A5: No. of combustion lines | B5: 1 | D5: No. of Turbines: | F5: 1 | J5: * - RDF to include SRF
J6: ** - Combusted tonnage = tonnes delivered in period + (tonnes in bunker at start of period – tonnes in bunker at end of period), or equivalent calculation depending on plant type
A7: Waste types received | B7: Unit | C7: Q1 | D7: Q2 | E7: Q3 | F7: Q4 | G7: Year Total | H7: %
A8: Household / Local Authority | B8: tonnes | C8: =SUM('[1]Operation Input'!B45:D45) -> 47287.96 | D8: =SUM('[1]Operation Input'!E45:G45) -> 47622.63 | E8: =SUM('[1]Operation Input'!H45:J45) -> 35242.32 | F8: =SUM('[1]Operation Input'!K45:M45) -> 40344.06 | G8: =SUM(C8:F8) -> 170496.97 | H8: =IF(G8>0,G8/$G$18,"-") -> 0.963281922
A9: Commercial & Industrial | C9: =SUM('[1]Operation Input'!B46:D46) -> 2404.85 | D9: =SUM('[1]Operation Input'!E46:G46) -> 1879.5 | E9: =SUM('[1]Operation Input'!H46:J46) -> 372.44 | F9: =SUM('[1]Operation Input'!K46:M46) -> 1842.16 | G9: =SUM(C9:F9) -> 6498.95 | H9: 0.03671807802 | J9: *** - CHP plants only
A10: Hazardous | G10: 0 | H10: - | J10: **** Availability Definition: 'the availability of a line is to be calculated by the number of hours the line reported Continuously Monitored emission levels to the Regulator through the calendar year divided by the total number of hours in that year. The overall plant availability is calculated as the Mean of all lines in the plant. For clarity this includes periods of abnormal operation.' Rationale: The primary function of an Energy from Waste facility is the disposal of waste. It follows therefore that the availability of a plant is determined by the period of time a facility spends undertaking this activity.
A11: Clinical | G11: 0 | H11: -
A12: Waste wood (biomass) | G12: 0 | H12: -
A13: Refuse Derived Fuel * - H'hold/LA | G13: =SUM(C13:F13) -> 0 | H13: -
A14: Refuse Derived Fuel * - C&I | G14: 0 | H14: -
A15: Other [Please specify] | G15: 0 | H15: -
A16: Other [Please specify] | G16: 0 | H16: -
A17: Other [Please specify] | G17: 0 | H17: -
A18: Total waste received | C18: =SUM(C8:C17) -> 49692.81 | D18: =SUM(D8:D17) -> 49502.13 | E18: =SUM(E8:E17) -> 35614.76 | F18: =SUM(F8:F17) -> 42186.22 | G18: 176995.92
A19: Rejected Waste | G19: =SUM(C19:F19) -> 0 | H19: =IF(G19>0,G19/$G$18,"-") -> -
A20: Unprocessed waste transferred out | G20: =SUM(C20:F20) -> 0 | H20: =IF(G20>0,G20/$G$18,"-") -> -
A21: Total waste combusted ** | C21: 49642 | D21: 49451 | E21: 35564 | F21: 42135 | G21: =SUM(C21:F21) -> 176792
J22: Password for protected cells A password has been set to prevent accidental editing of cells with formulae. If you still need to make an edit for some reason then the password = 1234
A23: Energy Usage / Export | B23: Unit | C23: Q1 | D23: Q2 | E23: Q3 | F23: Q4 | G23: Year Total | H23: KWh/te
A24: Power Generated | B24: MWh | C24: =SUM('[1]Operation Input'!B20:D20) -> 31103 | D24: =SUM('[1]Operation Input'!E20:G20) -> 32064.9 | E24: =SUM('[1]Operation Input'!H20:J20) -> 23271 | F24: =SUM('[1]Operation Input'!K20:M20) -> 25570.4 | G24: =SUM(C24:F24) -> 112009.3 | H24: =IF(G24>0,G24*1000/$G$21,"-") -> 633.5654328
A25: Power Exported | C25: =SUM('[1]Operation Input'!B26:D26) -> 25507.2753 | D25: =SUM('[1]Operation Input'!E26:G26) -> 26244.4764 | E25: =SUM('[1]Operation Input'!H26:J26) -> 19054.602 | F25: =SUM('[1]Operation Input'!K26:M26) -> 20734.6527 | G25: =SUM(C25:F25) -> 91541.0064 | H25: =IF(G25>0,G25*1000/$G$21,"-") -> 517.7893027
A26: Power Used on site | C26: 2868 | D26: 3219 | E26: 2787 | F26: 3185 | G26: =SUM(C26:F26) -> 12059 | H26: =IF(G26>0,G26*1000/$G$21,"-") -> 68.2101
A27: Power Imported | C27: 40.192 | D27: 0 | E27: 174.514 | F27: 247.953 | G27: 462.659 | H27: =IF(G27>0,G27*1000/$G$21,"-") -> 2.616967962
A28: Parasitic Load | B28: % | C28: =IF(C24>0,1-C25/(C24+C27),"-") -> 0.1809678565 | D28: =IF(D24>0,1-D25/(D24+D27),"-") -> 0.1815200921 | E28: =IF(E24>0,1-E25/(E24+E27),"-") -> 0.1872815414 | F28: =IF(F24>0,1-F25/(F24+F27),"-") -> 0.1969025793 | G28: =IF(G24>0,1-G25/(G24+G27),"-") -> 0.1860992979
A29: Thermal Energy Produced *** | B29: MWh | G29: =SUM(C29:F29) -> 0 | H29: =IF(G29>0,G29*1000/$G$21,"-") -> -
A30: Thermal Energy Exported *** | G30: 0 | H30: =IF(G30>0,G30*1000/$G$21,"-") -> -
A31: R1 value (if applicable) | B31: R1
A33: Waste Disposal & Recovery | B33: Unit | C33: Q1 | D33: Q2 | E33: Q3 | F33: Q4 | G33: Year Total | H33: % inputs
A34: APC Residues - produced | B34: tonnes | C34: 1205.18 | D34: 1076.52 | E34: 777.34 | F34: 1100.88 | G34: =SUM(C34:F34) -> 4159.92 | H34: =IF(G34>0,G34/$G$21,"-") -> 0.02353002398
A35: IBA - produced | C35: 10600.74 | D35: 10832.06 | E35: 7374.98 | F35: 8367.9 | G35: 37175.68 | H35: =IF(G35>0,G35/$G$21,"-") -> 0.2102791982
A36: Metals recycling | C36: 1562.382331 | D36: 1590.679127 | E36: 1210.81746 | F36: 1339.578922 | G36: =SUM(C36:F36) -> 5703.45784 | H36: 0.03226083669
A37: Other | C37: 0 | D37: 0 | E37: 0 | F37: 0 | G37: =SUM(C37:F37) -> 0 | H37: -
A38: Other | C38: 0 | D38: 0 | E38: 0 | F38: 0 | G38: 0 | H38: -
A39: Other | C39: 0 | D39: 0 | E39: 0 | F39: 0 | G39: 0 | H39: -
A41: Raw Material Usage | B41: Unit | C41: Q1 | D41: Q2 | E41: Q3 | F41: Q4 | G41: Year Total | H41: kg or Ltr /te
A42: Mains Water | B42: ltrs | C42: 5522 | D42: 5110 | E42: 3759 | F42: 3600 | G42: =SUM(C42:F42) -> 17991 | H42: =IF(G42>0,G42/$G$21,"-") -> 0.1017636545
A43: Other Water | B43: ltrs | C43: N/A | D43: N/A | E43: N/A | F43: N/A | G43: 0 | H43: =IF(G43>0,G43/$G$21,"-") -> -
A44: Ammonia | B44: kgs | C44: 98057.05 | D44: 121333.94 | E44: 90886.25 | F44: 98715.89 | G44: 408993.13 | H44: 2.313414238
A45: Urea | B45: kgs | C45: N/A | D45: N/A | E45: N/A | F45: N/A | G45: =SUM(C45:F45) -> 0 | H45: -
A46: Activated Carbon | B46: kgs | C46: 12302 | D46: 12033 | E46: 8809 | F46: 9962 | G46: 43106 | H46: 0.2438232499
A47: Lime / hydrated lime | B47: kgs | C47: 513747 | D47: 456550 | E47: 306483 | F47: 532933 | G47: 1809713 | H47: 10.23639644
A48: Fuel oil | B48: ltrs | C48: 22804.7 | D48: 24273.6 | E48: 77867.9 | F48: 41004 | G48: 165950.2 | H48: 0.9386748269
A49: Gas | B49: cuf | C49: N/A | D49: N/A | E49: N/A | F49: N/A | G49: 0
A50: Other | C50: N/A | D50: N/A | E50: N/A | F50: N/A | G50: 0
A52: Summary | B52: Line/Unit | C52: Q1 | D52: Q2 | E52: Q3 | F52: Q4 | G52: Year Total | I52: Hrs in year
A53: Availability of waste combustion by line, hrs **** | B53: =+B5 -> 1 | C53: 2119.016667 | D53: 2179.216667 | E53: 1621.85 | F53: 1893.416667 | G53: =SUM(C53:F53) -> 7813.5 | H53: =+G53/$I$53 -> 0.8919520548 | I53: 8760
B54: 2 | G54: 0 | H54: =+G54/$I$53 -> 0
B55: 3 | G55: 0 | H55: 0
B56: 4 | G56: 0 | H56: 0
B57: 5 | G57: =SUM(C57:F57) -> 0 | H57: 0
A58: Overall Availability, mean avg. of all lines, hrs | C58: 2119.016667 | D58: 2179.216667 | E58: 1621.85 | F58: 1893.416667 | G58: =AVERAGE(G53:G57) -> 1562.7 | H58: 0.178390411
A59: Hours of turbine operations, hrs | B59: 1 | C59: 2107.55 | D59: 2184 | E59: 1587.266667 | F59: 1804.316667 | G59: 7683.133333 | H59: 0.8770700152
A60: Hours of turbine operations, hrs | B60: 2 | G60: 0 | H60: 0
A61: Hours of heat / steam export | G61: 0 | H61: =IF(B61>0,G60/I53,"n/a") -> n/a
A62: Net Calorific Value of waste | B62: MJ/kg | C62: 8.8 | D62: 8.6 | E62: 8.7 | F62: 8.06
A63: Abnormal Events | B63: qty. | C63: 1 | D63: 0 | E63: 0 | F63: 1 | G63: 2 | H63: =IF(G63>0,"yes","no") -> yes
A64: Abnormal operation | B64: hours | C64: 1.35 | D64: 0 | E64: 0 | F64: 0.25 | G64: 1.6 | H64: =+(G64)/I53 -> 0.0001826484018
A65: Permit Breaches | B65: qty. | G65: 0 | H65: =IF(G65>0,"yes","no") -> no

Sheet Operational Summary
A1: =+'Cover Page'!$B$29 -> Annual Performance Report 2023 | E1: =+'Cover Page'!$B$33 -> Lincolnshire Energy from Waste Facility
A3: Summary of Plant Operations and Maintenance during the reporting year | K3: Notes:
A5: During 2023 the site operated for 89.2% of the year with 176,792 tonnes of waste incinerated against a permit limit of 190,000 tonnes with full compliance to all limits set within the permit. The site had a planned annual outage from mid September to early October 2023 where routine maintenance that cannot be done while the plant is online was undertaken including replacement of the economiser. The site generated 112,009 MWh of electricity during 2023, exporting 91,541 MWh to the national grid. | K5: Include summary of key operational and/or mainteanance activity undertaken in the year, such as any major component upgrades and/or replacements
A29: Summary of Residue Handling for the reporting year
A31: Incinerator Bottom Ash (IBA) is sampled 4 times per year for permit compliance purposes, in particular for Total Organic Content where the permit has a limit of 3%. Full compliance was achieved during 2023; no values were above 3% with an average value of 1.6% achieved. Additional testing of IBA is undertaken in order to correctly classify the IBA. 24 samples (2 per month) were taken in 2022 to assess for any hazardous content within the IBA. During 2023 all 24 sample results were returned confirming the classification of the IBA as non-hazardous. All metals within the IBA are sent along with the non-hazardous IBA to a third party company who operate a permitted facility dedicated to management of bottom ash. Metals are segregated and sent for recycling while the remaining incinerator bottom ash is used as a substitute aggregate material for use within the construction industry. Air Pollution Control Residues (APCr) formed from the cleaning of the flue gases are also analysed on a quarterly basis, albeit with no limits set within the permit. The APCr is tankered to a permitted treatment site where the material is used to neutralise highly acidic wastes before the resulting residue is sent for disposal. | K31: Include in here a summary of residue handling regimes and destinations

Sheet Perf. Form 1
A1: =+'Cover Page'!C39 -> 2023 | B1: Annual Reporting Performance Form 1
A3: =+'Cover Page'!B31 -> Permit EPR/FP3739FS | F3: Operator: | G3: =+'Cover Page'!B37:I37 -> 0
A4: Facility: | B4: =+'Cover Page'!B33:I33 -> Lincolnshire Energy from Waste Facility | F4: Form: | G4: Performance 1
A6: Reporting Period from: | D6: 01.01.2023 | F6: to: | G6: 31.12.2023
A8: =+A1 -> 2023 | B8: Annual Reporting of Waste Disposal and Recovery
A9: Waste Description | C9: Disposal Route(s) | E9: Disposal Tonnes | G9: Recovery Tonnes | I9: % / tonne of waste incinerated
A10: 1) Hazardous Wastes
A11: APC Residues | C11: D13 | E11: 4160 | I11: =IF((E11+G11)>0,(E11+G11)/'Operational Data'!$G$21, "-") -> 0.02353047649
A12: IBA | I12: =IF((E12+G12)>0,(E12+G12)/'Operational Data'!$G$21, "-") -> -
I13: =IF((E13+G13)>0,(E13+G13)/'Operational Data'!$G$21, "-") -> -
I14: =IF((E14+G14)>0,(E14+G14)/'Operational Data'!$G$21, "-") -> -
A15: Total Hazardous Waste | E15: =SUM(E11:F14) -> 4160 | G15: =SUM(G11:H14) -> 0 | I15: =IF((E15+G15)>0,(E15+G15)/'Operational Data'!$G$21, "-") -> 0.02353047649
A18: IBA | C18: R05 | G18: 37176 | I18: =IF((E18+G18)>0,(E18+G18)/'Operational Data'!$G$21, "-") -> 0.2102810082
A19: Ferrous Metal | C19: R04 | G19: 4701 | I19: =IF((E19+G19)>0,(E19+G19)/'Operational Data'!$G$21, "-") -> 0.02659056971
A20: Process Water | G20: 3553 | I20: =IF((E20+G20)>0,(E20+G20)/'Operational Data'!$G$21, "-") -> 0.02009706322
I21: =IF((E21+G21)>0,(E21+G21)/'Operational Data'!$G$21, "-") -> -
I22: =IF((E22+G22)>0,(E22+G22)/'Operational Data'!$G$21, "-") -> -
A23: Total Non-Hazardous Waste | E23: =SUM(E18:F22) -> 0 | G23: =SUM(G18:H22) -> 45430 | I23: =IF((E23+G23)>0,(E23+G23)/'Operational Data'!$G$21, "-") -> 0.2569686411
A24: TOTAL WASTE | E24: =+E23+E15 -> 4160 | G24: =+G23+G15 -> 45430 | I24: =IF((E24+G24)>0,(E24+G24)/'Operational Data'!$G$21, "-") -> 0.2804991176
A26: Operator’s comments :
A31: =+A1 -> 2023 | B31: Annual Reporting of Water and Other Raw Material Usage
A32: Raw Material | E32: Usage | G32: Unit | H32: Specific Useage | J32: Unit
A33: Mains Water | E33: =+'Operational Data'!G42 -> 17991 | G33: m3 | H33: =IF(E33>0,E33/'Operational Data'!$G$21,"-") -> 0.1017636545 | J33: m3/te
A34: Total Water | E34: =+'Operational Data'!G43+'Operational Data'!G42 -> 17991 | G34: m3 | H34: =IF(E34>0,E34/'Operational Data'!$G$21,"-") -> 0.1017636545 | J34: m3/te
A35: Urea / Ammonia | E35: =+'Operational Data'!G44 -> 408993.13 | G35: kg | H35: =IF(E35>0,E35/'Operational Data'!$G$21,"-") -> 2.313414238 | J35: kg/te
A36: Activated Carbon | E36: =+'Operational Data'!G46 -> 43106 | G36: kg | H36: =IF(E36>0,E36/'Operational Data'!$G$21,"-") -> 0.2438232499 | J36: kg/te
A37: Lime / hydrated lime / Sodium Bicarb. | E37: =+'Operational Data'!G47 -> 1809713 | G37: kg | H37: =IF(E37>0,E37/'Operational Data'!$G$21,"-") -> 10.23639644 | J37: kg/te
A39: Operator’s comments :
A43: =+A31 -> 2023 | B43: Annual Reporting of other performance indicators
A44: Parameter | C44: Results by Line
C45: A1 | D45: A2 | E45: A3 | F45: A4 | G45: A5 | I45: Turbine 1 | J45: Turbine 2
A46: Operating hours for the year, hours | C46: 7814
A47: Number of periods of abnormal operation, qty. | C47: 2
A48: Cumulative hours of abnormal operation for this year, hours | C48: 1.55
A50: Operator’s comments :
A54: Signed: | G54: Date:

Sheet Energy Form 1
A1: =+'Cover Page'!C39 -> 2023 | B1: Annual Reporting of Energy Usage/Export
A3: =+'Cover Page'!B31 -> Permit EPR/FP3739FS | F3: Operator: | G3: =+'Cover Page'!B37:I37 -> 0
A5: Facility: | B5: =+'Cover Page'!B33:I33 -> Lincolnshire Energy from Waste Facility | F5: Form: | G5: Energy 1
A7: Reporting Period from: | D7: =+'Perf. Form 1'!D6:E6 -> 01.01.2023 | F7: to: | G7: =+'Perf. Form 1'!G6:H6 -> 31.12.2023
A9: Energy Source | D9: Energy Usage | F9: Unit | G9: Specific Useage (KWh/tonne incinerated
A10: Electricity Produced | D10: =+'Operational Data'!G24 -> 112009.3 | F10: MWh | G10: =+'Operational Data'!H24 -> 633.5654328
A11: Electricity Imported | D11: =+'Operational Data'!G27 -> 462.659 | F11: MWh | G11: =+'Operational Data'!H27 -> 2.616967962
A12: Electricity Exported | D12: =+'Operational Data'!G25 -> 91541.0064 | F12: MWh | G12: =+'Operational Data'!H25 -> 517.7893027
A13: Gas Oil | D13: 137.7 | F13: tonnes
A14: Steam/hot water exported | D14: =+'Operational Data'!G30 -> 0 | F14: GWh | G14: =+'Operational Data'!H30 -> -
A18: Operator’s comments :
A29: Signed: | G29: Date:

Sheet Permit Compliance
A1: =+'Cover Page'!$B$29 -> Annual Performance Report 2023 | E1: =+'Cover Page'!$B$33 -> Lincolnshire Energy from Waste Facility
A3: Summary of Permit Compliance
A5: Compliance with permit limits for continuously monitored pollutants
A7: The plant met its emission limits as shown in the table below:
A8: Substance | C8: Percentage time compliant during operationNote 1 | L8: Notes:
C9: Half-hourly limit | F9: Daily limit | L9: Note 1: Please report to 2 decimal places, i.e. xx.xx% Note 2: Please provide a brief summary of each notification or non-compliance in the table (rather than just referring to notifications that were sent to the Regulator), including stating the value of measured result for any ELV exceedances.
A10: Particulates | C10: 1 | F10: 1
A11: Oxides of nitrogen | C11: 1 | F11: 1
A12: Sulphur dioxide | C12: 1 | F12: 1
A13: Carbon monoxide | C13: 100% 95% of 10-min averages | F13: 1
A14: Total organic carbon | C14: 1 | F14: 1
A15: Hydrogen chloride | C15: 1 | F15: 1
A16: Hydrogen fluoride | C16: 1 | F16: 1
C17: 1 | F17: 1
A19: Summary of any notifications or non-compliances under the permit
A20: Date | B20: Summary of notification or non-compliance [including Line/Reference]Note 2 | E20: Reason | H20: Measures taken to prevent reoccurrence
A27: Summary of any complaints received and actions to taken to resolve them.
A28: Date | B28: Summary of complaint [including Line/Reference] | E28: Reason * | H28: Measures taken to prevent reoccurrence
E34: * including whether substantiated by the operator or the EA

Sheet Improvements
A1: =+'Cover Page'!$B$29 -> Annual Performance Report 2023 | E1: =+'Cover Page'!$B$33 -> Lincolnshire Energy from Waste Facility
A3: Summary of Plant Improvements
A5: Summary of any efficiency improvements that have been completed within the year.
A6: Ongoing replacement of lighting with LED units to reduce electricity consumption.
A16: Summary of any permit improvement conditions that have been completed within the year and the resulting environmental benefits.
A17: Reports demonstrating compliance with IC2, IC3 and IC4 were submitted prior to the deadline of 30/09/2023. Reduced daily ELVs in accordance with the BREF requirements were introduced on 01/12/2023. An OTNOC Management Plan using the most recent draft template provided by the Environment Agency was added to the site's Written Management System on 3/12/2023 | J17: ui
A27: Summary of any changes to the plant or operating techniques which required a variation to the permit and a summary of the resulting environmental impact.
A28: No new variation was issued in 2023
A38: Summary of any other improvements made to the plant or planned to be made and a summary of the resulting environmental benefits.

Sheet Public Liasion
A1: =+'Cover Page'!$B$29 -> Annual Performance Report 2023 | E1: =+'Cover Page'!$B$33 -> Lincolnshire Energy from Waste Facility
A3: Details of Public & Stakeholder Liasion
A5: Summary of events held during the reporting year.
A6: Date | C6: Description
A7: 10.11.2023 | C7: Community Liaison Meeting and facility tour
A16: List of events planned for next year
A17: Date | C17: Description
A18: 25.05.2024 | C18: Lincolnshire EfW Open Day
A29: If you wish to be involved in the public liasion programme, please contact 01522 814315 or visit https://lincolnshire.fccenvironment.co.uk/contact-us/

Sheet CO2 N2O
A1: =+'Cover Page'!$B$29 -> Annual Performance Report 2023 | C1: =+'Cover Page'!$B$33 -> Lincolnshire Energy from Waste Facility
A3: Carbon dioxide emissions and biogenic content of waste inputs | F3: Notes:
A5: Carbon dioxide emissions (all types of plant)
B6: Annual mass of carbon dioxide released | C6: tonnes | D6: 169944
B7: Annual mass of carbon dioxide released per tonne of waste burned | C7: t CO2 / t waste | D7: 0.988
B8: Annual mass of carbon dioxide released per MWh of energy exported | C8: t CO2 / MWh export | D8: 1.86
B9: Description of how annual carbon dioxide mass emission has been calculated. See Note 1 | C9: The Annual Average CO2 % is taken from the CEMs. This was multiplied by 10,000 to convert to ppm. And using conversion factors in the EA's PI guidance note converted to mg/m3. Then multiplied by average stack flow (m3/hr) in 2023. | F9: Note 1: Where available, data from CO2 CEMS should be used. Otherwise, only where no CEMS data is available, a suitable emissions factor should be used based on the tonnage of waste burned e.g.0.942 tCO2/t waste as per Tolvik report 2022, or other justified emissions factor - refer to embedded Environment Agency guidance note above or updated version for suitable descriptive text.
A10: Nitrous oxide emissions (only plants which use ammonia or urea to abate NOx emissions)
B11: Annual mass emissions of nitrous oxide | C11: tonnes N2O | D11: 0.6
B12: Description of how annual nitrous oxide mass emission has been calculated See Note 2 | C12: Annual Average taken from CEMs and multiplied by average annual flow for 2023. Annual tonnage was then calculated using annual hours of plant availability. | F12: Note 2: Where available, data from N2O CEMS should be used. If no CEMS data is available, from periodic monitoring. Otherwise, a suitable emissions factor should be used based on the tonnage of waste burned e.g. 0.0981 kgN20/t waste as per 2021 Pollution Inventory data for plants with urea-based SNCR - refer to embedded Environment Agency guidance note above or updated version for suitable descriptive text.
A13: Total annual carbon dioxide and nitrous oxide emissions. See Note 3. | C13: tonnes CO2e | D13: 170123 | F13: Note 3: Total annual carbon dioxide and nitrous oxide emissions reported as carbon dioxide equivalent where 1 tonne nitrous oxide is equivalent to 298 tonne carbon dioxide
A14: Biogenic CO2 emissions (See Note 4) | F14: Note 4: Only plants combusting residual municipal waste, refuse derived fuel or solid recovered fuel
B15: Percentage of total carbon dioxide emissions arising from biogenic waste | C15: % | D15: 0.47
B16: No. of measurements undertaken | C16: Number | D16: 1
B17: Description of how percentage biogenic carbon dioxide emissions have been measured or calculated. See Note 5 | C17: Compositional analysis undertaken by Alfred H Knight Energy Services in 2020-2021 provides relative calorific contribution of each sorted fraction and total biogenic contribution to weighted CV | F17: Note 5: Examples include direct measurement via C14 method or BIOMA software - refer to embedded Environment Agency guidance note above or updated version for suitable descriptive text, quoting standards where relevant. Otherwise, as an approximation (and in lieu of any more accurate metrics which may be developed in future), the measured or estimated biogenic fraction by net calorific value can be assumed to be the same as the biogenic CO2 fraction of the total CO2 emissions from the plant.
A18: Biogenic fraction of waste feedstock (See Note 4)
B19: Yearly average biogenic percentage of the waste by net calorific value (NCV) | C19: % | D19: 0.47
B20: If sampling undertaken, no. of samples used to ascertain average biogenic % above | C20: Number | D20: 1
B21: Description of how biogenic percentage (by NCV) has been calculated or estimated. See Note 6 | C21: Compositional analysis undertaken by Alfred H Knight Energy Services in 2020-2021 provides relative calorific contribution of each sorted fraction and total biogenic contribution to weighted CV | F21: Note 6: Where available, data from waste sampling should be used; otherwise, an estimated figure with justification can be used, or a figure assumed on the basis of a national average e.g. 2017 WRAP data for residual waste of 51.8% biogenic energy content - refer to embedded Environment Agency guidance note above or updated version for suitable descriptive text, quoting standards where relevant.
B23: Comments:

Sheet Residue Quality
A1: =+'Cover Page'!$B$29 -> Annual Performance Report 2023 | E1: =+'Cover Page'!$B$33 -> Lincolnshire Energy from Waste Facility
A3: Residue Quality Monitoring Requirements
A5: Summary of monitoring undertaken and compliance
A6: Monitoring of residues for permit compliance was undertaken with full compliance to the residue limit recorded. No specific events were recorded during 2023.
A8: All 24 samples taken and analysed as per the ESA protocol were returned demonstrating that the Incinerator Bottom Ash should be classified as non-hazardous.
A13: Commentary on any specific events
A14: Date & Event | C14: Description
A27: Residue Quality Monitoring Results
A28: Parameter (unit) | C28: Limit | D28: Normal Operation
D29: Bottom ash | F29: APC Residues
A30: Loss on Ignition (average %) | C30: <5%
A31: Total Organic Carbon (average %) | C31: <3% | D31: 1.6
A32: No. of Assessments Undertaken | C32: --- | D32: 24 | F32: 4
A33: No. of Hazardous Results | C33: --- | D33: 0
A35: Comments :

Sheet Water
A1: =+'Cover Page'!$B$29 -> Annual Performance Report 2023 | E1: =+'Cover Page'!$B$33 -> Lincolnshire Energy from Waste Facility
A3: Emissions to Water
A5: Summary of monitoring undertaken and compliance
A13: Commentary on any specific events
A14: Date & Event | C14: Description
A22: Emissions to Water / Sewer
A23: Parameter | D23: Monitoring Frequency | F23: Limit | G23: Target | H23: Max. | I23: Average
A24: Oil or grease | D24: Monthly | F24: 0 | G24: 0 | H24: 0 | I24: 0

Sheet Air (periodic)
A1: =+'Cover Page'!$B$29 -> Annual Performance Report 2023 | E1: =+'Cover Page'!$B$33 -> Lincolnshire Energy from Waste Facility
A3: Emissions to Air (periodically monitored)
A5: Summary of monitoring undertaken, standards used and compliance | K5: Notes:
K6: Template may require adjustment for any bespoke monitoring requirements of permit - please also check that all default ELV values, reference periods and the stated oxygen reference value match those for your plant, and edit if necessary!
A9: Results of emissions to air that are periodically monitored - oxygen reference 6%
A10: Substance | C10: Ref. Period | D10: Emission Limit Value* | F10: Average | K10: User to add additional tables as necessary, depending on whether quarterly or bi-annual reporting is required for the compliance year
F11: A1 | G11: A2 | H11: A3 | I11: A4 | J11: A5
A12: Hydrogen fluoride | C12: 1 hr | D12: 2 mg/m3 | F12: =[2]Line1!H38 -> 0.42
A13: Cd and Th and their compounds | C13: 0.5-8hrs | D13: 0.05 mg/m3 | F13: =[2]Line1!H32 -> 0.0012
A14: Hg and its compounds | C14: 0.5-8hrs | D14: 0.05 mg/m3 | F14: =[2]Line1!H36 -> 0.000965 | K14: * Denotes limits that were in force until 2 December 2023; from 3 December 2023 the following new limits applied (those not listed remained unchanged):
A15: Sb, As, Pb, Cr, Co, Cu, Mn, Ni, V and their compounds | C15: 0.5-8hrs | D15: 0.5 mg/m3 | F15: =[2]Line1!H34 -> 0.0255
A16: Dioxins & Furans (I-TEQ) | C16: 6-8hrs | D16: 0.1 ng/m3 | F16: =[2]Line1!H2 -> 0.011 | K16: Substance | L16: Reference Period | M16: Emission Limit Value
A17: PCBs (WHO-TEQ Humans / Mammals) | C17: 6-8hrs | D17: None set ng/m3 | F17: =[2]Line1!H18 -> 0.00155
A18: PCBs (WHO-TEQ Fish) | C18: 6-8hrs | D18: None set ng/m3 | F18: =[2]Line1!H20 -> 8.5e-05 | K18: Hydrogen fluoride | L18: Average of three consecutive measurements of at least 30 minutes each | M18: 1 mg/m3
A19: PCBs (WHO-TEQ Birds) | C19: 6-8hrs | D19: None set ng/m3 | F19: =[2]Line1!H22 -> 0.00505 | K19: Cd and Th and their compounds | L19: Average of three consecutive measurements of at least 30 minutes each | M19: 0.02 mg/m3
A20: Dioxins & Furans (WHO-TEQ Humans / Mammals) | C20: 6-8hrs | D20: None set ng/m3 | F20: =[2]Line1!H4 -> 0.01065 | K20: Hg and its compounds | L20: Average of three consecutive measurements of at least 30 minutes each | M20: 0.02 mg/m3
A21: Dioxins & Furans (WHO-TEQ Fish) | C21: 6-8hrs | D21: None set ng/m3 | F21: =[2]Line1!H6 -> 0.0114 | K21: Sb, As, Pb, Cr, Co, Cu, Mn, Ni, V and their compounds | L21: Average of three consecutive measurements of at least 30 minutes each | M21: 0.3 mg/m3
A22: Dioxins & Furans (WHO-TEQ Birds) | C22: 6-8hrs | D22: None set ng/m3 | F22: =[2]Line1!H8 -> 0.02115 | K22: Dioxins & Furans (I-TEQ) | L22: 6-8hrs | M22: 0.06 ng/m3
A23: Anthanthrene | C23: 6-8hrs | D23: None set µg/m3 | F23: =[2]Line1!N52 -> < 0.0019
A24: Benzo(a)anthracene | C24: 6-8hrs | D24: None set µg/m3 | F24: =[2]Line1!N53 -> < 0.07
A25: Benzo(a)pyrene | C25: 6-8hrs | D25: None set µg/m3 | F25: =[2]Line1!N59 -> < 0.01
A26: Benzo(b)fluoranthene | C26: 6-8hrs | D26: None set µg/m3 | F26: =[2]Line1!N54 -> 0.03
A27: Benzo(b)naptho(2,1-d) thiophene | C27: 6-8hrs | D27: None set µg/m3 | F27: =[2]Line1!N56 -> < 0.39
A28: Benzo(c)phenanthrene | C28: 6-8hrs | D28: None set µg/m3 | F28: =[2]Line1!N57 -> < 0.02
A29: Benzo(ghi)perylene | C29: 6-8hrs | D29: None set µg/m3 | F29: =[2]Line1!N58 -> 0.01
A30: Benzo(k)fluoranthene | C30: 6-8hrs | D30: None set µg/m3 | F30: =[2]Line1!N55 -> < 0.01
A31: Cholanthrene | C31: 6-8hrs | D31: None set µg/m3 | F31: =[2]Line1!N60 -> < 0.0019
A32: Chrysene | C32: 6-8hrs | D32: None set µg/m3 | F32: =[2]Line1!N61 -> 0.08
A33: Cyclopenta(cd)pyrene | C33: 6-8hrs | D33: None set µg/m3 | F33: =[2]Line1!N62 -> < 0.0019
A34: Dibenzo(ai)pyrene | C34: 6-8hrs | D34: None set µg/m3 | F34: =[2]Line1!N64 -> < 0.0019
A35: Dibenzo(ah)anthracene | C35: 6-8hrs | D35: None set µg/m3 | F35: =[2]Line1!N63 -> < 0.0019
A36: Fluoranthene | C36: 6-8hrs | D36: None set µg/m3 | F36: =[2]Line1!N65 -> 0.24
A37: Indeno(123-cd) pyrene | C37: 6-8hrs | D37: None set µg/m3 | F37: =[2]Line1!N66 -> < 0.01
A38: Naphthalene | C38: 6-8hrs | D38: None set µg/m3 | F38: =[2]Line1!N67 -> 0.76
A39: Comments :

Sheet Air (CEMS)
A1: =+'Cover Page'!$B$29 -> Annual Performance Report 2023 | I1: =+'Cover Page'!$B$33 -> Lincolnshire Energy from Waste Facility
A3: Emissions to Air (continously monitored)
N4: Notes:
A5: Summary of monitoring undertaken, standards used and compliance | N5: Template may require adjustment for any bespoke monitoring requirements of permit
N6: Please check that all default ELV values match those for your plant and edit if necessary!
N7: Report to 1 decimal place
A11: Results of emissions to air that are continuously monitored (maximum and average values for each line) - oxygen reference 11%
A12: Substance | B12: Reference Period | C12: Emission Limit Value** | D12: A1 | F12: A2 | H12: A3 | J12: A4 | L12: A5
D13: Max. | E13: Avg. | F13: Max. | G13: Avg. | H13: Max. | I13: Avg. | J13: Max. | K13: Avg. | L13: Max. | M13: Avg. | N13: ** Denotes limits that were in force until 2 December 2023; from 3 December 2023 the following new limits applied (those not listed remained unchanged):
A14: Oxides of nitrogen | B14: Daily mean | C14: 200 mg/m3 | D14: 214.1 | E14: 159.5166667
B15: ½ hourly mean | C15: 400 mg/m3 | D15: 320.4 | E15: 159.6916667 | N15: Substance | O15: Reference Period | P15: Emission Limit Value
A16: Particulates | B16: Daily mean | C16: 10 mg/m3 | D16: 0.6 | E16: 0.1
B17: ½ hourly mean | C17: 30 mg/m3 | D17: 1.1 | E17: 0.125 | N17: Oxides of nitrogen | O17: Daily mean | P17: 180 mg/m3
A18: Total Organic Carbon | B18: Daily mean | C18: 10 mg/m3 | D18: 2.2 | E18: 1.041666667 | N18: Particulates | O18: Daily mean | P18: 5 mg/m3
B19: ½ hourly mean | C19: 20 mg/m3 | D19: 16.5 | E19: 1.091666667 | N19: Hydrogen chloride | O19: Daily mean | P19: 8 mg/m3
A20: Hydrogen chloride | B20: Daily mean | C20: 10 mg/m3 | D20: 7.7 | E20: 4.891666667 | N20: Sulphur dioxide | O20: Daily mean | P20: 40 mg/m3
B21: ½ hourly mean | C21: 60 mg/m3 | D21: 14.6 | E21: 4.958333333 | N21: Ammonia | O21: Daily mean | P21: 15 mg/m3
A22: Sulphur dioxide | B22: Daily mean | C22: 50 mg/m3 | D22: 39.4 | E22: 30.56666667
B23: ½ hourly mean | C23: 200 mg/m3 | D23: 271.8 | E23: 30.58333333
A24: Carbon monoxide | B24: Daily mean | C24: 50 mg/m3 | D24: 15.3 | E24: 3.658333333
B25: 95%ile 10-min avg * | C25: 150 mg/m3 * | D25: 859.3 | E25: 150
A26: Ammonia | B26: Daily mean | C26: No limit set until 03/12/23 | D26: 11.5 | E26: 3.7
A27: ** = delete as appropriate, depending on whether your plant has half-horly or 10-min CO ELVs
A28: Comments :

Sheet HCl
A1: =+'Cover Page'!$B$29 -> Annual Performance Report 2023 | E1: =+'Cover Page'!$B$33 -> Lincolnshire Energy from Waste Facility
A3: Monitoring of Hydrogen Chloride emissions | D3: Whole Installation | G3: See Notes in Cell Q3 | J3: =+A3 -> Monitoring of Hydrogen Chloride emissions | N3: Per Combustion Line | Q3: Notes:
Q4: User to add logic to complete Whole installation, Table A5:G18. From the data in Per Combustion Line, Table J6:O79, subject to No. of lines installed
A5: mg/Nm3 | B5: 1/2 Hourly Reference Periods | E5: Daily Reference Periods
A6: =+'Cover Page'!C39 -> 2023 | B6: 1/2 hourly HCl ELV | C6: Monthly 1/2 hourly mean | D6: Highest 1/2 hourly maximum | E6: Daily HCl ELV* | F6: Monthly daily mean | G6: Highest daily maximum | J6: =+A6 -> 2023 | K6: mg/Nm3 | L6: Monthly 1/2 hourly mean | M6: Monthly 1/2 hourly maximum | N6: Monthly daily mean | O6: Monthly daily maximum
A7: Jan | B7: 60 | C7: 5.4 | D7: 10.1 | E7: 10 | F7: 5.4 | G7: 6.1 | J7: A1 | K7: Jan | L7: 5.4 | M7: 10.3 | N7: 5.4 | O7: 6.2
A8: Feb | B8: 60 | C8: 4.1 | D8: 7.5 | E8: 10 | F8: 4.1 | G8: 5.7 | K8: Feb | L8: 4.1 | M8: 7.5 | N8: 4.1 | O8: 5.8
A9: Mar | B9: 60 | C9: 3.7 | D9: 7.4 | E9: 10 | F9: 3.7 | G9: 4.9 | K9: Mar | L9: 3.7 | M9: 7.4 | N9: 3.7 | O9: 4.9 | Q9: Whole Installation table A5:G18:
A10: Apr | B10: 60 | C10: 4 | D10: 8.4 | E10: 10 | F10: 4 | G10: 5.3 | K10: Apr | L10: 4 | M10: 8.4 | N10: 4 | O10: 5.3 | Q10: Mean: for 1/2 hourly and daily periods calculate mean of values across all operational combustion lines for the month
A11: May | B11: 60 | C11: 5.2 | D11: 9.6 | E11: 10 | F11: 5.2 | G11: 6.3 | K11: May | L11: 5.2 | M11: 9.6 | N11: 5.2 | O11: 6.3
A12: Jun | B12: 60 | C12: 6.4 | D12: 14.4 | E12: 10 | F12: 6.3 | G12: 7.2 | K12: Jun | L12: 6.4 | M12: 14.4 | N12: 6.3 | O12: 7.2
A13: Jul | B13: 60 | C13: 6.5 | D13: 11.8 | E13: 10 | F13: 6.4 | G13: 6.9 | K13: Jul | L13: 6.5 | M13: 11.8 | N13: 6.4 | O13: 6.9 | Q13: Maximum: for 1/2 hourly and daily periods use the highest value across all operational combustion lines for the month
A14: Aug | B14: 60 | C14: 6.3 | D14: 12.6 | E14: 10 | F14: 6.2 | G14: 7.7 | K14: Aug | L14: 6.3 | M14: 12.6 | N14: 6.2 | O14: 7.7
A15: Sep | B15: 60 | C15: 6.1 | D15: 11.9 | E15: 10 | F15: 5.9 | G15: 7.1 | K15: Sep | L15: 6.1 | M15: 11.9 | N15: 5.9 | O15: 7.1
A16: Oct | B16: 60 | C16: 3.9 | D16: 14.6 | E16: 10 | F16: 3.8 | G16: 4.7 | K16: Oct | L16: 3.9 | M16: 14.6 | N16: 3.8 | O16: 4.7
A17: Nov | B17: 60 | C17: 4.2 | D17: 8.3 | E17: 10 | F17: 4.1 | G17: 5.3 | K17: Nov | L17: 4.2 | M17: 8.3 | N17: 4.1 | O17: 5.3
A18: Dec | B18: 60 | C18: 3.7 | D18: 5.9 | E18: 8 | F18: 3.6 | G18: 4.4 | K18: Dec | L18: 3.7 | M18: 5.9 | N18: 3.6 | O18: 4.4
E19: * ELV reduced to 8 mg/Nm3 on 3 December 2023 | K19: Annual | L19: =AVERAGE(L7:L18) -> 4.958333333 | M19: =MAX(M7:M18) -> 14.6 | N19: =AVERAGE(N7:N18) -> 4.891666667 | O19: =MAX(O7:O18) -> 7.7
J21: =+A6 -> 2023 | K21: mg/Nm3 | L21: Monthly 1/2 hourly mean | M21: Monthly 1/2 hourly maximum | N21: Monthly daily mean | O21: Monthly daily maximum
J22: A2 | K22: Jan
K23: Feb
K24: Mar
K25: Apr
K26: May
K27: Jun
K28: Jul
K29: Aug
K30: Sep
K31: Oct
K32: Nov
K33: Dec
K34: Annual | L34: =AVERAGE(L22:L33) ->  | M34: =MAX(M22:M33) -> 0 | N34: =AVERAGE(N22:N33) ->  | O34: =MAX(O22:O33) -> 0
J36: =+A6 -> 2023 | K36: mg/Nm3 | L36: Monthly 1/2 hourly mean | M36: Monthly 1/2 hourly maximum | N36: Monthly daily mean | O36: Monthly daily maximum
J37: A3 | K37: Jan
K38: Feb
K39: Mar
K40: Apr
K41: May
K42: Jun
K43: Jul
K44: Aug
K45: Sep
K46: Oct
K47: Nov
A48: Comments : | K48: Dec
K49: Annual | L49: =AVERAGE(L37:L48) ->  | M49: =MAX(M37:M48) -> 0 | N49: =AVERAGE(N37:N48) ->  | O49: =MAX(O37:O48) -> 0
J51: =+A6 -> 2023 | K51: mg/Nm3 | L51: Monthly 1/2 hourly mean | M51: Monthly 1/2 hourly maximum | N51: Monthly daily mean | O51: Monthly daily maximum
J52: A4 | K52: Jan
K53: Feb
K54: Mar
K55: Apr
K56: May
K57: Jun
K58: Jul
K59: Aug
K60: Sep
K61: Oct
K62: Nov
K63: Dec
K64: Annual | L64: =AVERAGE(L52:L63) ->  | M64: =MAX(M52:M63) -> 0 | N64: =AVERAGE(N52:N63) ->  | O64: =MAX(O52:O63) -> 0
J66: =+A6 -> 2023 | K66: mg/Nm3 | L66: Monthly 1/2 hourly mean | M66: Monthly 1/2 hourly maximum | N66: Monthly daily mean | O66: Monthly daily maximum
J67: A5 | K67: Jan
K68: Feb
K69: Mar
K70: Apr
K71: May
K72: Jun
K73: Jul
K74: Aug
K75: Sep
K76: Oct
K77: Nov
K78: Dec
K79: Annual | L79: =AVERAGE(L67:L78) ->  | M79: =MAX(M67:M78) -> 0 | N79: =AVERAGE(N67:N78) ->  | O79: =MAX(O67:O78) -> 0

Sheet SO2
A1: =+'Cover Page'!$B$29 -> Annual Performance Report 2023 | E1: =+'Cover Page'!$B$33 -> Lincolnshire Energy from Waste Facility
A3: Monitoring of Sulphur dioxide emissions | D3: Whole Installation | G3: See Notes in Cell Q3 | J3: =+A3 -> Monitoring of Sulphur dioxide emissions | N3: Per Combustion Line | Q3: Notes:
Q4: User to add logic to complete Whole installation, Table A5:G18. From the data in Per Combustion Line, Table J6:O79, subject to No. of lines installed
A5: mg/Nm3 | B5: 1/2 Hourly Reference Periods | E5: Daily Reference Periods
A6: =+'Cover Page'!C39 -> 2023 | B6: 1/2 hourly SO2 ELV | C6: Monthly 1/2 hourly mean | D6: Highest 1/2 hourly maximum | E6: Daily SO2 ELV* | F6: Monthly daily mean | G6: Highest daily maximum | J6: =+A6 -> 2023 | K6: mg/Nm3 | L6: Monthly 1/2 hourly mean | M6: Monthly 1/2 hourly maximum | N6: Monthly daily mean | O6: Monthly daily maximum
A7: Jan | B7: 200 | C7: 33.5 | D7: 80.9 | E7: 50 | F7: 33.5 | G7: 42.2 | J7: A1 | K7: Jan | L7: 33.5 | M7: 80.9 | N7: 33.5 | O7: 42.2
A8: Feb | B8: 200 | C8: 35.6 | D8: 80.5 | E8: 50 | F8: 35.6 | G8: 42.9 | K8: Feb | L8: 35.6 | M8: 80.5 | N8: 35.6 | O8: 42.9
A9: Mar | B9: 200 | C9: 33.1 | D9: 85.3 | E9: 50 | F9: 33.3 | G9: 38.1 | K9: Mar | L9: 33.1 | M9: 85.3 | N9: 33.3 | O9: 38.1 | Q9: Whole Installation table A5:G18:
A10: Apr | B10: 200 | C10: 32.6 | D10: 88.8 | E10: 50 | F10: 32.6 | G10: 40.4 | K10: Apr | L10: 32.6 | M10: 88.8 | N10: 32.6 | O10: 40.4 | Q10: Mean: for 1/2 hourly and daily periods calculate mean of values across all operational combustion lines for the month
A11: May | B11: 200 | C11: 31.9 | D11: 68 | E11: 50 | F11: 31.9 | G11: 39.9 | K11: May | L11: 31.9 | M11: 68 | N11: 31.9 | O11: 39.9
A12: Jun | B12: 200 | C12: 26.8 | D12: 83.8 | E12: 50 | F12: 27 | G12: 37.6 | K12: Jun | L12: 26.8 | M12: 83.8 | N12: 27 | O12: 37.6
A13: Jul | B13: 200 | C13: 25 | D13: 83.6 | E13: 50 | F13: 24.9 | G13: 32 | K13: Jul | L13: 25 | M13: 83.6 | N13: 24.9 | O13: 32 | Q13: Maximum: for 1/2 hourly and daily periods use the highest value across all operational combustion lines for the month
A14: Aug | B14: 200 | C14: 16.8 | D14: 71.1 | E14: 50 | F14: 16.8 | G14: 24.1 | K14: Aug | L14: 16.8 | M14: 71.1 | N14: 16.8 | O14: 24.1
A15: Sep | B15: 200 | C15: 21.3 | D15: 56.6 | E15: 50 | F15: 20.6 | G15: 36.4 | K15: Sep | L15: 21.3 | M15: 56.6 | N15: 20.6 | O15: 36.4
A16: Oct | B16: 200 | C16: 35.4 | D16: 271.8 | E16: 50 | F16: 35.7 | G16: 39.7 | K16: Oct | L16: 35.4 | M16: 271.8 | N16: 35.7 | O16: 39.7
A17: Nov | B17: 200 | C17: 35.8 | D17: 94.1 | E17: 50 | F17: 35.8 | G17: 39.1 | K17: Nov | L17: 35.8 | M17: 94.1 | N17: 35.8 | O17: 39.1
A18: Dec | B18: 200 | C18: 34.3 | D18: 93.4 | E18: 40 | F18: 34.3 | G18: 39.6 | K18: Dec | L18: 34.3 | M18: 93.4 | N18: 34.3 | O18: 39.6
E19: * ELV reduced to 40 mg/Nm3 on 3 December 2023 | K19: Annual | L19: =AVERAGE(L7:L18) -> 30.175 | M19: =MAX(M7:M18) -> 271.8 | N19: =AVERAGE(N7:N18) -> 30.16666667 | O19: =MAX(O7:O18) -> 42.9
J21: =+A6 -> 2023 | K21: mg/Nm3 | L21: Monthly 1/2 hourly mean | M21: Monthly 1/2 hourly maximum | N21: Monthly daily mean | O21: Monthly daily maximum
J22: A2 | K22: Jan
K23: Feb
K24: Mar
K25: Apr
K26: May
K27: Jun
K28: Jul
K29: Aug
K30: Sep
K31: Oct
K32: Nov
K33: Dec
K34: Annual | L34: =AVERAGE(L22:L33) ->  | M34: =MAX(M22:M33) -> 0 | N34: =AVERAGE(N22:N33) ->  | O34: =MAX(O22:O33) -> 0
J36: =+A6 -> 2023 | K36: mg/Nm3 | L36: Monthly 1/2 hourly mean | M36: Monthly 1/2 hourly maximum | N36: Monthly daily mean | O36: Monthly daily maximum
J37: A3 | K37: Jan
K38: Feb
K39: Mar
K40: Apr
K41: May
K42: Jun
K43: Jul
K44: Aug
K45: Sep
K46: Oct
K47: Nov
A48: Comments : | K48: Dec
K49: Annual | L49: =AVERAGE(L37:L48) ->  | M49: =MAX(M37:M48) -> 0 | N49: =AVERAGE(N37:N48) ->  | O49: =MAX(O37:O48) -> 0
J51: =+A6 -> 2023 | K51: mg/Nm3 | L51: Monthly 1/2 hourly mean | M51: Monthly 1/2 hourly maximum | N51: Monthly daily mean | O51: Monthly daily maximum
J52: A4 | K52: Jan
K53: Feb
K54: Mar
K55: Apr
K56: May
K57: Jun
K58: Jul
K59: Aug
K60: Sep
K61: Oct
K62: Nov
K63: Dec
K64: Annual | L64: =AVERAGE(L52:L63) ->  | M64: =MAX(M52:M63) -> 0 | N64: =AVERAGE(N52:N63) ->  | O64: =MAX(O52:O63) -> 0
J66: =+A6 -> 2023 | K66: mg/Nm3 | L66: Monthly 1/2 hourly mean | M66: Monthly 1/2 hourly maximum | N66: Monthly daily mean | O66: Monthly daily maximum
J67: A5 | K67: Jan
K68: Feb
K69: Mar
K70: Apr
K71: May
K72: Jun
K73: Jul
K74: Aug
K75: Sep
K76: Oct
K77: Nov
K78: Dec
K79: Annual | L79: =AVERAGE(L67:L78) ->  | M79: =MAX(M67:M78) -> 0 | N79: =AVERAGE(N67:N78) ->  | O79: =MAX(O67:O78) -> 0

Sheet NOx
A1: =+'Cover Page'!$B$29 -> Annual Performance Report 2023 | E1: =+'Cover Page'!$B$33 -> Lincolnshire Energy from Waste Facility
A3: Monitoring of Oxides of Nitrogen emissions | D3: Whole Installation | G3: See Notes in Cell Q3 | J3: =+A3 -> Monitoring of Oxides of Nitrogen emissions | N3: Per Combustion Line | Q3: Notes:
Q4: User to add logic to complete Whole installation, Table A5:G18. From the data in Per Combustion Line, Table J6:O79, subject to No. of lines installed
A5: mg/Nm3 | B5: 1/2 Hourly Reference Periods | E5: Daily Reference Periods
A6: =+'Cover Page'!C39 -> 2023 | B6: 1/2 hourly NOx ELV | C6: Monthly 1/2 hourly mean | D6: Highest 1/2 hourly maximum | E6: Daily NOx ELV* | F6: Monthly daily mean | G6: Highest daily maximum | J6: =+A6 -> 2023 | K6: mg/Nm3 | L6: Monthly 1/2 hourly mean | M6: Monthly 1/2 hourly maximum | N6: Monthly daily mean | O6: Monthly daily maximum
A7: Jan | B7: 400 | C7: 159.8 | D7: 228 | E7: 200 | F7: 160 | G7: 175.6 | J7: A1 | K7: Jan | L7: 159.8 | M7: 228 | N7: 160 | O7: 175.6
A8: Feb | B8: 400 | C8: 160.1 | D8: 293.1 | E8: 200 | F8: 160.1 | G8: 181.4 | K8: Feb | L8: 160.1 | M8: 293.1 | N8: 160.1 | O8: 181.4
A9: Mar | B9: 400 | C9: 163.3 | D9: 296.2 | E9: 200 | F9: 163 | G9: 175.1 | K9: Mar | L9: 163.3 | M9: 296.2 | N9: 163 | O9: 175.1 | Q9: Whole Installation table A5:G18:
A10: Apr | B10: 400 | C10: 158 | D10: 255.2 | E10: 200 | F10: 158 | G10: 170.5 | K10: Apr | L10: 158 | M10: 255.2 | N10: 158 | O10: 170.5 | Q10: Mean: for 1/2 hourly and daily periods calculate mean of values across all operational combustion lines for the month
A11: May | B11: 400 | C11: 154.1 | D11: 249.3 | E11: 200 | F11: 154 | G11: 169.5 | K11: May | L11: 154.1 | M11: 249.3 | N11: 154 | O11: 169.5
A12: Jun | B12: 400 | C12: 154.1 | D12: 253.3 | E12: 200 | F12: 153.6 | G12: 160.8 | K12: Jun | L12: 154.1 | M12: 253.3 | N12: 153.6 | O12: 160.8
A13: Jul | B13: 400 | C13: 152.9 | D13: 245.4 | E13: 200 | F13: 152.9 | G13: 162.8 | K13: Jul | L13: 152.9 | M13: 245.4 | N13: 152.9 | O13: 162.8 | Q13: Maximum: for 1/2 hourly and daily periods use the highest value across all operational combustion lines for the month
A14: Aug | B14: 400 | C14: 155.7 | D14: 229.4 | E14: 200 | F14: 155.7 | G14: 171.4 | K14: Aug | L14: 155.7 | M14: 229.4 | N14: 155.7 | O14: 171.4
A15: Sep | B15: 400 | C15: 153.2 | D15: 254.7 | E15: 200 | F15: 152.6 | G15: 160.3 | K15: Sep | L15: 153.2 | M15: 254.7 | N15: 152.6 | O15: 160.3
A16: Oct | B16: 400 | C16: 169 | D16: 320.4 | E16: 200 | F16: 168.5 | G16: 178.1 | K16: Oct | L16: 169 | M16: 320.4 | N16: 168.5 | O16: 178.1
A17: Nov | B17: 400 | C17: 156 | D17: 288.5 | E17: 200 | F17: 156 | G17: 171.1 | K17: Nov | L17: 156 | M17: 288.5 | N17: 156 | O17: 171.1
A18: Dec | B18: 400 | C18: 150.9 | D18: 281.8 | E18: 180 | F18: 150.8 | G18: 166.9 | K18: Dec | L18: 150.9 | M18: 281.8 | N18: 150.8 | O18: 166.9
E19: * ELV reduced to 180 mg/Nm3 on 3 December 2023 | K19: Annual | L19: =AVERAGE(L7:L18) -> 157.2583333 | M19: =MAX(M7:M18) -> 320.4 | N19: =AVERAGE(N7:N18) -> 157.1 | O19: =MAX(O7:O18) -> 181.4
J21: =+A6 -> 2023 | K21: mg/Nm3 | L21: Monthly 1/2 hourly mean | M21: Monthly 1/2 hourly maximum | N21: Monthly daily mean | O21: Monthly daily maximum
J22: A2 | K22: Jan
K23: Feb
K24: Mar
K25: Apr
K26: May
K27: Jun
K28: Jul
K29: Aug
K30: Sep
K31: Oct
K32: Nov
K33: Dec
K34: Annual | L34: =AVERAGE(L22:L33) ->  | M34: =MAX(M22:M33) -> 0 | N34: =AVERAGE(N22:N33) ->  | O34: =MAX(O22:O33) -> 0
J36: =+A6 -> 2023 | K36: mg/Nm3 | L36: Monthly 1/2 hourly mean | M36: Monthly 1/2 hourly maximum | N36: Monthly daily mean | O36: Monthly daily maximum
J37: A3 | K37: Jan
K38: Feb
K39: Mar
K40: Apr
K41: May
K42: Jun
K43: Jul
K44: Aug
K45: Sep
K46: Oct
K47: Nov
A48: Comments : | K48: Dec
K49: Annual | L49: =AVERAGE(L37:L48) ->  | M49: =MAX(M37:M48) -> 0 | N49: =AVERAGE(N37:N48) ->  | O49: =MAX(O37:O48) -> 0
J51: =+A6 -> 2023 | K51: mg/Nm3 | L51: Monthly 1/2 hourly mean | M51: Monthly 1/2 hourly maximum | N51: Monthly daily mean | O51: Monthly daily maximum
J52: A4 | K52: Jan
K53: Feb
K54: Mar
K55: Apr
K56: May
K57: Jun
K58: Jul
K59: Aug
K60: Sep
K61: Oct
K62: Nov
K63: Dec
K64: Annual | L64: =AVERAGE(L52:L63) ->  | M64: =MAX(M52:M63) -> 0 | N64: =AVERAGE(N52:N63) ->  | O64: =MAX(O52:O63) -> 0
J66: =+A6 -> 2023 | K66: mg/Nm3 | L66: Monthly 1/2 hourly mean | M66: Monthly 1/2 hourly maximum | N66: Monthly daily mean | O66: Monthly daily maximum
J67: A5 | K67: Jan
K68: Feb
K69: Mar
K70: Apr
K71: May
K72: Jun
K73: Jul
K74: Aug
K75: Sep
K76: Oct
K77: Nov
K78: Dec
K79: Annual | L79: =AVERAGE(L67:L78) ->  | M79: =MAX(M67:M78) -> 0 | N79: =AVERAGE(N67:N78) ->  | O79: =MAX(O67:O78) -> 0

Sheet TOC
A1: =+'Cover Page'!$B$29 -> Annual Performance Report 2023 | E1: =+'Cover Page'!$B$33 -> Lincolnshire Energy from Waste Facility
A3: Monitoring of Total organic carbon emissions | D3: Whole Installation | G3: See Notes in Cell Q3 | J3: =+A3 -> Monitoring of Total organic carbon emissions | N3: Per Combustion Line | Q3: Notes:
Q4: User to add logic to complete Whole installation, Table A5:G18. From the data in Per Combustion Line, Table J6:O79, subject to No. of lines installed
A5: mg/Nm3 | B5: 1/2 Hourly Reference Periods | E5: Daily Reference Periods
A6: =+'Cover Page'!C39 -> 2023 | B6: 1/2 hourly TOC ELV | C6: Monthly 1/2 hourly mean | D6: Highest 1/2 hourly maximum | E6: Daily TOC ELV | F6: Monthly daily mean | G6: Highest daily maximum | J6: =+A6 -> 2023 | K6: mg/Nm3 | L6: Monthly 1/2 hourly mean | M6: Monthly 1/2 hourly maximum | N6: Monthly daily mean | O6: Monthly daily maximum
A7: Jan | B7: 20 | C7: 1 | D7: 5.5 | E7: 10 | F7: 1 | G7: 1.1 | J7: A1 | K7: Jan | L7: 1 | M7: 5.5 | N7: 1 | O7: 1.1
A8: Feb | B8: 20 | C8: 1.1 | D8: 5.4 | E8: 10 | F8: 1.1 | G8: 1.2 | K8: Feb | L8: 1.1 | M8: 5.4 | N8: 1.1 | O8: 1.2
A9: Mar | B9: 20 | C9: 1 | D9: 7.2 | E9: 10 | F9: 1 | G9: 1.1 | K9: Mar | L9: 1 | M9: 7.2 | N9: 1 | O9: 1.1 | Q9: Whole Installation table A5:G18:
A10: Apr | B10: 20 | C10: 1 | D10: 5.1 | E10: 10 | F10: 1 | G10: 1.3 | K10: Apr | L10: 1 | M10: 5.1 | N10: 1 | O10: 1.3 | Q10: Mean: for 1/2 hourly and daily periods calculate mean of values across all operational combustion lines for the month
A11: May | B11: 20 | C11: 1.1 | D11: 7.1 | E11: 10 | F11: 1.1 | G11: 1.5 | K11: May | L11: 1.1 | M11: 7.1 | N11: 1.1 | O11: 1.5
A12: Jun | B12: 20 | C12: 1.2 | D12: 5.1 | E12: 10 | F12: 1.2 | G12: 1.3 | K12: Jun | L12: 1.2 | M12: 5.1 | N12: 1.2 | O12: 1.3
A13: Jul | B13: 20 | C13: 1.2 | D13: 7.5 | E13: 10 | F13: 1.2 | G13: 1.4 | K13: Jul | L13: 1.2 | M13: 7.5 | N13: 1.2 | O13: 1.4 | Q13: Maximum: for 1/2 hourly and daily periods use the highest value across all operational combustion lines for the month
A14: Aug | B14: 20 | C14: 1.2 | D14: 4.2 | E14: 10 | F14: 1.2 | G14: 1.5 | K14: Aug | L14: 1.2 | M14: 4.2 | N14: 1.2 | O14: 1.5
A15: Sep | B15: 20 | C15: 1.3 | D15: 3.5 | E15: 10 | F15: 1.1 | G15: 1.8 | K15: Sep | L15: 1.3 | M15: 3.5 | N15: 1.1 | O15: 1.8
A16: Oct | B16: 20 | C16: 1.4 | D16: 16.5 | E16: 10 | F16: 1.1 | G16: 2.2 | K16: Oct | L16: 1.4 | M16: 16.5 | N16: 1.1 | O16: 2.2
A17: Nov | B17: 20 | C17: 0.8 | D17: 4.8 | E17: 10 | F17: 0.7 | G17: 1.1 | K17: Nov | L17: 0.8 | M17: 4.8 | N17: 0.7 | O17: 1.1
A18: Dec | B18: 20 | C18: 0.7 | D18: 3.9 | E18: 10 | F18: 0.7 | G18: 0.8 | K18: Dec | L18: 0.7 | M18: 3.9 | N18: 0.7 | O18: 0.8
K19: Annual | L19: =AVERAGE(L7:L18) -> 1.083333333 | M19: =MAX(M7:M18) -> 16.5 | N19: =AVERAGE(N7:N18) -> 1.033333333 | O19: =MAX(O7:O18) -> 2.2
J21: =+A6 -> 2023 | K21: mg/Nm3 | L21: Monthly 1/2 hourly mean | M21: Monthly 1/2 hourly maximum | N21: Monthly daily mean | O21: Monthly daily maximum
J22: A2 | K22: Jan
K23: Feb
K24: Mar
K25: Apr
K26: May
K27: Jun
K28: Jul
K29: Aug
K30: Sep
K31: Oct
K32: Nov
K33: Dec
K34: Annual | L34: =AVERAGE(L22:L33) ->  | M34: =MAX(M22:M33) -> 0 | N34: =AVERAGE(N22:N33) ->  | O34: =MAX(O22:O33) -> 0
J36: =+A6 -> 2023 | K36: mg/Nm3 | L36: Monthly 1/2 hourly mean | M36: Monthly 1/2 hourly maximum | N36: Monthly daily mean | O36: Monthly daily maximum
J37: A3 | K37: Jan
K38: Feb
K39: Mar
K40: Apr
K41: May
K42: Jun
K43: Jul
K44: Aug
K45: Sep
K46: Oct
K47: Nov
A48: Comments : | K48: Dec
K49: Annual | L49: =AVERAGE(L37:L48) ->  | M49: =MAX(M37:M48) -> 0 | N49: =AVERAGE(N37:N48) ->  | O49: =MAX(O37:O48) -> 0
J51: =+A6 -> 2023 | K51: mg/Nm3 | L51: Monthly 1/2 hourly mean | M51: Monthly 1/2 hourly maximum | N51: Monthly daily mean | O51: Monthly daily maximum
J52: A4 | K52: Jan
K53: Feb
K54: Mar
K55: Apr
K56: May
K57: Jun
K58: Jul
K59: Aug
K60: Sep
K61: Oct
K62: Nov
K63: Dec
K64: Annual | L64: =AVERAGE(L52:L63) ->  | M64: =MAX(M52:M63) -> 0 | N64: =AVERAGE(N52:N63) ->  | O64: =MAX(O52:O63) -> 0
J66: =+A6 -> 2023 | K66: mg/Nm3 | L66: Monthly 1/2 hourly mean | M66: Monthly 1/2 hourly maximum | N66: Monthly daily mean | O66: Monthly daily maximum
J67: A5 | K67: Jan
K68: Feb
K69: Mar
K70: Apr
K71: May
K72: Jun
K73: Jul
K74: Aug
K75: Sep
K76: Oct
K77: Nov
K78: Dec
K79: Annual | L79: =AVERAGE(L67:L78) ->  | M79: =MAX(M67:M78) -> 0 | N79: =AVERAGE(N67:N78) ->  | O79: =MAX(O67:O78) -> 0

Sheet Particulates
A1: =+'Cover Page'!$B$29 -> Annual Performance Report 2023 | E1: =+'Cover Page'!$B$33 -> Lincolnshire Energy from Waste Facility
A3: Monitoring of Particulate matter emissions | D3: Whole Installation | G3: See Notes in Cell Q3 | J3: =+A3 -> Monitoring of Particulate matter emissions | N3: Per Combustion Line | Q3: Notes:
Q4: User to add logic to complete Whole installation, Table A5:G18. From the data in Per Combustion Line, Table J6:O79, subject to No. of lines installed
A5: mg/Nm3 | B5: 1/2 Hourly Reference Periods | E5: Daily Reference Periods
A6: =+'Cover Page'!C39 -> 2023 | B6: 1/2 hourly PM ELV | C6: Monthly 1/2 hourly mean | D6: Highest 1/2 hourly maximum | E6: Daily PM ELV* | F6: Monthly daily mean | G6: Highest daily maximum | J6: =+A6 -> 2023 | K6: mg/Nm3 | L6: Monthly 1/2 hourly mean | M6: Monthly 1/2 hourly maximum | N6: Monthly daily mean | O6: Monthly daily maximum
A7: Jan | B7: 30 | C7: 0.2 | D7: 0.5 | E7: 10 | F7: 0.2 | G7: 0.3 | J7: A1 | K7: Jan | L7: 0.2 | M7: 0.5 | N7: 0.2 | O7: 0.3
A8: Feb | B8: 30 | C8: 0.2 | D8: 0.2 | E8: 10 | F8: 0.2 | G8: 0.2 | K8: Feb | L8: 0.2 | M8: 0.2 | N8: 0.2 | O8: 0.2
A9: Mar | B9: 30 | C9: 0.1 | D9: 0.3 | E9: 10 | F9: 0.1 | G9: 0.2 | K9: Mar | L9: 0.1 | M9: 0.3 | N9: 0.1 | O9: 0.2 | Q9: Whole Installation table A5:G18:
A10: Apr | B10: 30 | C10: 0.1 | D10: 0.3 | E10: 10 | F10: 0.1 | G10: 0.1 | K10: Apr | L10: 0.1 | M10: 0.3 | N10: 0.1 | O10: 0.1 | Q10: Mean: for 1/2 hourly and daily periods calculate mean of values across all operational combustion lines for the month
A11: May | B11: 30 | C11: 0.1 | D11: 0.4 | E11: 10 | F11: 0.1 | G11: 0.2 | K11: May | L11: 0.1 | M11: 0.4 | N11: 0.1 | O11: 0.2
A12: Jun | B12: 30 | C12: 0.1 | D12: 0.4 | E12: 10 | F12: 0.1 | G12: 0.2 | K12: Jun | L12: 0.1 | M12: 0.4 | N12: 0.1 | O12: 0.2
A13: Jul | B13: 30 | C13: 0.1 | D13: 0.4 | E13: 10 | F13: 0.1 | G13: 0.2 | K13: Jul | L13: 0.1 | M13: 0.4 | N13: 0.1 | O13: 0.2 | Q13: Maximum: for 1/2 hourly and daily periods use the highest value across all operational combustion lines for the month
A14: Aug | B14: 30 | C14: 0.1 | D14: 0.4 | E14: 10 | F14: 0.1 | G14: 0.2 | K14: Aug | L14: 0.1 | M14: 0.4 | N14: 0.1 | O14: 0.2
A15: Sep | B15: 30 | C15: 0.2 | D15: 0.8 | E15: 10 | F15: 0.1 | G15: 0.6 | K15: Sep | L15: 0.2 | M15: 0.8 | N15: 0.1 | O15: 0.6
A16: Oct | B16: 30 | C16: 0.1 | D16: 0.4 | E16: 10 | F16: 0.1 | G16: 0.2 | K16: Oct | L16: 0.1 | M16: 0.4 | N16: 0.1 | O16: 0.2
A17: Nov | B17: 30 | C17: 0.1 | D17: 1.1 | E17: 10 | F17: 0.1 | G17: 0.1 | K17: Nov | L17: 0.1 | M17: 1.1 | N17: 0.1 | O17: 0.1
A18: Dec | B18: 30 | C18: 0.1 | D18: 0.3 | E18: 5 | F18: 0.1 | G18: 0.2 | K18: Dec | L18: 0.1 | M18: 0.3 | N18: 0.1 | O18: 0.2
E19: * ELV reduced to 5 mg/Nm3 on 3 December 2023 | K19: Annual | L19: =AVERAGE(L7:L18) -> 0.125 | M19: =MAX(M7:M18) -> 1.1 | N19: =AVERAGE(N7:N18) -> 0.1166666667 | O19: =MAX(O7:O18) -> 0.6
J21: =+A6 -> 2023 | K21: mg/Nm3 | L21: Monthly 1/2 hourly mean | M21: Monthly 1/2 hourly maximum | N21: Monthly daily mean | O21: Monthly daily maximum
J22: A2 | K22: Jan
K23: Feb
K24: Mar
K25: Apr
K26: May
K27: Jun
K28: Jul
K29: Aug
K30: Sep
K31: Oct
K32: Nov
K33: Dec
K34: Annual | L34: =AVERAGE(L22:L33) ->  | M34: =MAX(M22:M33) -> 0 | N34: =AVERAGE(N22:N33) ->  | O34: =MAX(O22:O33) -> 0
J36: =+A6 -> 2023 | K36: mg/Nm3 | L36: Monthly 1/2 hourly mean | M36: Monthly 1/2 hourly maximum | N36: Monthly daily mean | O36: Monthly daily maximum
J37: A3 | K37: Jan
K38: Feb
K39: Mar
K40: Apr
K41: May
K42: Jun
K43: Jul
K44: Aug
K45: Sep
K46: Oct
K47: Nov
A48: Comments : | K48: Dec
K49: Annual | L49: =AVERAGE(L37:L48) ->  | M49: =MAX(M37:M48) -> 0 | N49: =AVERAGE(N37:N48) ->  | O49: =MAX(O37:O48) -> 0
J51: =+A6 -> 2023 | K51: mg/Nm3 | L51: Monthly 1/2 hourly mean | M51: Monthly 1/2 hourly maximum | N51: Monthly daily mean | O51: Monthly daily maximum
J52: A4 | K52: Jan
K53: Feb
K54: Mar
K55: Apr
K56: May
K57: Jun
K58: Jul
K59: Aug
K60: Sep
K61: Oct
K62: Nov
K63: Dec
K64: Annual | L64: =AVERAGE(L52:L63) ->  | M64: =MAX(M52:M63) -> 0 | N64: =AVERAGE(N52:N63) ->  | O64: =MAX(O52:O63) -> 0
J66: =+A6 -> 2023 | K66: mg/Nm3 | L66: Monthly 1/2 hourly mean | M66: Monthly 1/2 hourly maximum | N66: Monthly daily mean | O66: Monthly daily maximum
J67: A5 | K67: Jan
K68: Feb
K69: Mar
K70: Apr
K71: May
K72: Jun
K73: Jul
K74: Aug
K75: Sep
K76: Oct
K77: Nov
K78: Dec
K79: Annual | L79: =AVERAGE(L67:L78) ->  | M79: =MAX(M67:M78) -> 0 | N79: =AVERAGE(N67:N78) ->  | O79: =MAX(O67:O78) -> 0

Sheet CO 0.5 hourly
A1: =+'Cover Page'!$B$29 -> Annual Performance Report 2023 | E1: =+'Cover Page'!$B$33 -> Lincolnshire Energy from Waste Facility
A3: Monitoring of Carbon Monoxide (half hourly) | D3: Whole Installation | G3: See Notes in Cell Q3 | J3: =+A3 -> Monitoring of Carbon Monoxide (half hourly) | N3: Per Combustion Line | Q3: Notes:
A5: Please complete this tab for your plant if you have 1/2 hourly CO ELVs; otherwise, leave it blank and complete the CO 95% 10 min tab
Q7: User to add logic to complete Whole installation, Table A5:G18. From the data in Per Combustion Line, Table J6:O79, subject to No. of lines installed
A8: mg/Nm3 | B8: 1/2 Hourly Reference Periods | E8: Daily Reference Periods
A9: =+'Cover Page'!C39 -> 2023 | B9: 1/2 hourly CO ELV | C9: Monthly 1/2 hourly mean | D9: Highest 1/2 hourly maximum | E9: Daily CO ELV | F9: Monthly daily mean | G9: Highest daily maximum | J9: =+A9 -> 2023 | K9: mg/Nm3 | L9: Monthly 1/2 hourly mean | M9: Monthly 1/2 hourly maximum | N9: Monthly daily mean | O9: Monthly daily maximum
A10: Jan | B10: 100 | E10: 50 | J10: A1 | K10: Jan
A11: Feb | B11: =+B10 -> 100 | E11: =+E10 -> 50 | K11: Feb
A12: Mar | B12: =+B11 -> 100 | E12: =+E11 -> 50 | K12: Mar | Q12: Whole Installation table A5:G18:
A13: Apr | B13: 100 | E13: 50 | K13: Apr | Q13: Mean: for 1/2 hourly and daily periods calculate mean of values across all operational combustion lines for the month
A14: May | B14: 100 | E14: 50 | K14: May
A15: Jun | B15: 100 | E15: 50 | K15: Jun
A16: Jul | B16: 100 | E16: 50 | K16: Jul | Q16: Maximum: for 1/2 hourly and daily periods use the highest value across all operational combustion lines for the month
A17: Aug | B17: 100 | E17: 50 | K17: Aug
A18: Sep | B18: 100 | E18: 50 | K18: Sep
A19: Oct | B19: 100 | E19: 50 | K19: Oct
A20: Nov | B20: 100 | E20: 50 | K20: Nov
A21: Dec | B21: 100 | E21: 50 | K21: Dec
K22: Annual | L22: =AVERAGE(L10:L21) ->  | M22: =MAX(M10:M21) -> 0 | N22: =AVERAGE(N10:N21) ->  | O22: =MAX(O10:O21) -> 0
J24: =+A9 -> 2023 | K24: mg/Nm3 | L24: Monthly 1/2 hourly mean | M24: Monthly 1/2 hourly maximum | N24: Monthly daily mean | O24: Monthly daily maximum
J25: A2 | K25: Jan
K26: Feb
K27: Mar
K28: Apr
K29: May
K30: Jun
K31: Jul
K32: Aug
K33: Sep
K34: Oct
K35: Nov
K36: Dec
K37: Annual | L37: =AVERAGE(L25:L36) ->  | M37: =MAX(M25:M36) -> 0 | N37: =AVERAGE(N25:N36) ->  | O37: =MAX(O25:O36) -> 0
J39: =+A9 -> 2023 | K39: mg/Nm3 | L39: Monthly 1/2 hourly mean | M39: Monthly 1/2 hourly maximum | N39: Monthly daily mean | O39: Monthly daily maximum
J40: A3 | K40: Jan
K41: Feb
K42: Mar
K43: Apr
K44: May
K45: Jun
K46: Jul
K47: Aug
K48: Sep
K49: Oct
K50: Nov
A51: Comments : | K51: Dec
K52: Annual | L52: =AVERAGE(L40:L51) ->  | M52: =MAX(M40:M51) -> 0 | N52: =AVERAGE(N40:N51) ->  | O52: =MAX(O40:O51) -> 0
J54: =+A9 -> 2023 | K54: mg/Nm3 | L54: Monthly 1/2 hourly mean | M54: Monthly 1/2 hourly maximum | N54: Monthly daily mean | O54: Monthly daily maximum
J55: A4 | K55: Jan
K56: Feb
K57: Mar
K58: Apr
K59: May
K60: Jun
K61: Jul
K62: Aug
K63: Sep
K64: Oct
K65: Nov
K66: Dec
K67: Annual | L67: =AVERAGE(L55:L66) ->  | M67: =MAX(M55:M66) -> 0 | N67: =AVERAGE(N55:N66) ->  | O67: =MAX(O55:O66) -> 0
J69: =+A9 -> 2023 | K69: mg/Nm3 | L69: Monthly 1/2 hourly mean | M69: Monthly 1/2 hourly maximum | N69: Monthly daily mean | O69: Monthly daily maximum
J70: A5 | K70: Jan
K71: Feb
K72: Mar
K73: Apr
K74: May
K75: Jun
K76: Jul
K77: Aug
K78: Sep
K79: Oct
K80: Nov
K81: Dec
K82: Annual | L82: =AVERAGE(L70:L81) ->  | M82: =MAX(M70:M81) -> 0 | N82: =AVERAGE(N70:N81) ->  | O82: =MAX(O70:O81) -> 0

Sheet CO 95% 10 min
A1: =+'Cover Page'!$B$29 -> Annual Performance Report 2023 | E1: =+'Cover Page'!$B$33 -> Lincolnshire Energy from Waste Facility
A3: Monitoring of Carbon Monoxide (10-minute avg) | E3: Whole Installation | H3: See Notes in Cell S3 | J3: =+A3 -> Monitoring of Carbon Monoxide (10-minute avg) | O3: Per Combustion Line | Q3: Notes: | S3: Notes:
A5: Please complete this tab for your plant if you have 10-minute average CO ELVs; otherwise, leave it blank and complete the CO 0.5 hourly tab
S7: User to add logic to complete Whole installation, Table A5:H18. From the data in Per Combustion Line, Table K6:Q79, subject to No. of lines installed
A8: mg/Nm3 | B8: 10-minute Reference Periods | F8: Daily Reference Periods
A9: =+'Cover Page'!C39 -> 2023 | B9: 95%ile 10-min avg CO ELV | C9: 95%ile 10-min avg maximum | D9: Monthly CO 10-min avg mean | E9: 10-min avg maximum | F9: Daily CO ELV | G9: Monthly daily mean | H9: Highest daily maximum | K9: =+A9 -> 2023 | L9: mg/Nm3 | M9: 95%ile 10-min avg maximum | N9: Monthly CO 10-min avg mean | O9: 10-min avg maximum | P9: Monthly daily mean | Q9: Monthly daily maximum
A10: Jan | B10: 150 | C10: 300 | D10: 3.7 | E10: 338.8 | F10: 50 | G10: 3.7 | H10: 338.8 | K10: A1 | L10: Jan | M10: 150 | N10: 3.7 | O10: 338.8 | P10: 3.7 | Q10: 8.7
A11: Feb | B11: =+B10 -> 150 | C11: 300 | D11: 4.3 | E11: 307.5 | F11: =+F10 -> 50 | G11: 4.3 | H11: 307.5 | L11: Feb | M11: 150 | N11: 4.3 | O11: 307.5 | P11: 4.3 | Q11: 6.6
A12: Mar | B12: =+B11 -> 150 | C12: 300 | D12: 3.1 | E12: 312.3 | F12: =+F11 -> 50 | G12: 3.1 | H12: 312.3 | L12: Mar | M12: 150 | N12: 3.1 | O12: 312.3 | P12: 3.1 | Q12: 5.6 | S12: Whole Installation table A5:H18:
A13: Apr | B13: 150 | C13: 300 | D13: 3.4 | E13: 772.4 | F13: 50 | G13: 3.4 | H13: 772.4 | L13: Apr | M13: 150 | N13: 3.4 | O13: 772.4 | P13: 3.3 | Q13: 7.4 | S13: Mean: for 10-min and daily periods use average of all operational combustion lines.
A14: May | B14: 150 | C14: 300 | D14: 3.1 | E14: 693.1 | F14: 50 | G14: 3.1 | H14: 693.1 | L14: May | M14: 150 | N14: 3.1 | O14: 693.1 | P14: 3.1 | Q14: 9.4
A15: Jun | B15: 150 | C15: 300 | D15: 3.4 | E15: 572 | F15: 50 | G15: 3.4 | H15: 572 | L15: Jun | M15: 150 | N15: 3.4 | O15: 572 | P15: 3.3 | Q15: 9
A16: Jul | B16: 150 | C16: 300 | D16: 2.9 | E16: 401 | F16: 50 | G16: 2.9 | H16: 401 | L16: Jul | M16: 150 | N16: 2.9 | O16: 401 | P16: 2.8 | Q16: 7.6 | S16: Maximum: for 10-min and daily periods use the highest of all operational combustion lines in any month.
A17: Aug | B17: 150 | C17: 300 | D17: 3.8 | E17: 470.3 | F17: 50 | G17: 3.8 | H17: 470.3 | L17: Aug | M17: 150 | N17: 3.8 | O17: 470.3 | P17: 3.8 | Q17: 14
A18: Sep | B18: 150 | C18: 300 | D18: 7.3 | E18: 859.3 | F18: 50 | G18: 7.3 | H18: 859.3 | L18: Sep | M18: 150 | N18: 7.3 | O18: 859.3 | P18: 7.2 | Q18: 15.3
A19: Oct | B19: 150 | C19: 300 | D19: 3.1 | E19: 584.7 | F19: 50 | G19: 3.1 | H19: 584.7 | L19: Oct | M19: 150 | N19: 3.1 | O19: 584.7 | P19: 3 | Q19: 7.5
A20: Nov | B20: 150 | C20: 300 | D20: 4.4 | E20: 443.5 | F20: 50 | G20: 4.4 | H20: 443.5 | L20: Nov | M20: 150 | N20: 4.4 | O20: 443.5 | P20: 4.4 | Q20: 11.9
A21: Dec | B21: 150 | C21: 300 | D21: 2.8 | E21: 390.1 | F21: 50 | G21: 2.8 | H21: 390.1 | L21: Dec | M21: 150 | N21: 2.8 | O21: 390.1 | P21: 2.7 | Q21: 5.6
L22: Annual | M22: =AVERAGE(M10:M21) -> 150 | O22: =MAX(O10:O21) -> 859.3 | P22: =AVERAGE(P10:P21) -> 3.725 | Q22: =MAX(Q10:Q21) -> 15.3
K24: =+A9 -> 2023 | L24: mg/Nm3 | M24: 95%ile 10-min avg maximum | N24: Monthly CO 10-min avg mean | O24: 10-min avg maximum | P24: Monthly daily mean | Q24: Monthly daily maximum
K25: A2 | L25: Jan
L26: Feb
L27: Mar
L28: Apr
L29: May
L30: Jun
L31: Jul
L32: Aug
L33: Sep
L34: Oct
L35: Nov
L36: Dec
L37: Annual | M37: =AVERAGE(M25:M36) ->  | O37: =MAX(O25:O36) -> 0 | P37: =AVERAGE(P25:P36) ->  | Q37: =MAX(Q25:Q36) -> 0
K39: =+A9 -> 2023 | L39: mg/Nm3 | M39: 95%ile 10-min avg maximum | N39: Monthly CO 10-min avg mean | O39: 10-min avg maximum | P39: Monthly daily mean | Q39: Monthly daily maximum
K40: A3 | L40: Jan
L41: Feb
L42: Mar
L43: Apr
L44: May
L45: Jun
L46: Jul
L47: Aug
L48: Sep
L49: Oct
L50: Nov
A51: Comments : | L51: Dec
A52: Environment Agency explanatory note: The 10-minute average ELV is based on the “95th percentile”. In this case this means that 95% of the 10 minute averages in the relevant 24-hour period (i.e. 137) must be below 150 mg/Nm3, and 5% (i.e. 7) are allowed to be any value above 150 mg/Nm3. Whilst we expect operators to minimise CO emissions at all times, it is perfectly acceptable for the value of the maximum 10-minute average to be above 150 mg/Nm3, provided the 95th percentile ELV has been met for that period. | L52: Annual | M52: =AVERAGE(M40:M51) ->  | O52: =MAX(O40:O51) -> 0 | P52: =AVERAGE(P40:P51) ->  | Q52: =MAX(Q40:Q51) -> 0
K54: =+A9 -> 2023 | L54: mg/Nm3 | M54: 95%ile 10-min avg maximum | N54: Monthly CO 10-min avg mean | O54: 10-min avg maximum | P54: Monthly daily mean | Q54: Monthly daily maximum
K55: A4 | L55: Jan
L56: Feb
L57: Mar
L58: Apr
L59: May
L60: Jun
L61: Jul
L62: Aug
L63: Sep
L64: Oct
L65: Nov
L66: Dec
L67: Annual | M67: =AVERAGE(M55:M66) ->  | O67: =MAX(O55:O66) -> 0 | P67: =AVERAGE(P55:P66) ->  | Q67: =MAX(Q55:Q66) -> 0
K69: =+A9 -> 2023 | L69: mg/Nm3 | M69: 95%ile 10-min avg maximum | N69: Monthly CO 10-min avg mean | O69: 10-min avg maximum | P69: Monthly daily mean | Q69: Monthly daily maximum
K70: A5 | L70: Jan
L71: Feb
L72: Mar
L73: Apr
L74: May
L75: Jun
L76: Jul
L77: Aug
L78: Sep
L79: Oct
L80: Nov
L81: Dec
L82: Annual | M82: =AVERAGE(M70:M81) ->  | O82: =MAX(O70:O81) -> 0 | P82: =AVERAGE(P70:P81) ->  | Q82: =MAX(Q70:Q81) -> 0

Sheet NH3
A1: =+'Cover Page'!$B$29 -> Annual Performance Report 2023 | E1: =+'Cover Page'!$B$33 -> Lincolnshire Energy from Waste Facility
A3: Monitoring of Ammnonia emissions | D3: Whole Installation | G3: See Notes in Cell Q3 | J3: =+A3 -> Monitoring of Ammnonia emissions | N3: Per Combustion Line | Q3: Notes:
Q4: User to add logic to complete Whole installation, Table A5:G18. From the data in Per Combustion Line, Table J6:O79, subject to No. of lines installed
A5: mg/Nm3 | B5: 1/2 Hourly Reference Periods | E5: Daily Reference Periods
A6: =+'Cover Page'!C39 -> 2023 | B6: 1/2 hourly NH3 ELV | C6: Monthly 1/2 hourly mean | D6: Highest 1/2 hourly maximum | E6: Daily NH3 ELV* | F6: Monthly daily mean | G6: Highest daily maximum | J6: =+A6 -> 2023 | K6: mg/Nm3 | L6: Monthly 1/2 hourly mean | M6: Monthly 1/2 hourly maximum | N6: Monthly daily mean | O6: Monthly daily maximum
A7: Jan | B7: None | C7: 3.5 | D7: 4.6 | E7: None | F7: 3.5 | G7: 3.6 | J7: A1 | K7: Jan | L7: 3.5 | M7: 4.6 | N7: 3.5 | O7: 3.6
A8: Feb | B8: =+B7 -> None | C8: 3.4 | D8: 5.5 | E8: None | F8: 3.4 | G8: 3.5 | K8: Feb | L8: 3.4 | M8: 5.5 | N8: 3.4 | O8: 3.5
A9: Mar | B9: =+B8 -> None | C9: 3.7 | D9: 11.8 | E9: None | F9: 3.6 | G9: 4.9 | K9: Mar | L9: 3.7 | M9: 11.8 | N9: 3.6 | O9: 4.9 | Q9: Whole Installation table A5:G18:
A10: Apr | B10: None | C10: 3.4 | D10: 6.2 | E10: None | F10: 3.3 | G10: 4.8 | K10: Apr | L10: 3.4 | M10: 6.2 | N10: 3.3 | O10: 4.8 | Q10: Mean: for 1/2 hourly and daily periods calculate mean of values across all operational combustion lines for the month
A11: May | B11: None | C11: 3 | D11: 5.5 | E11: None | F11: 3 | G11: 3.5 | K11: May | L11: 3 | M11: 5.5 | N11: 3 | O11: 3.5
A12: Jun | B12: None | C12: 2.8 | D12: 11.9 | E12: None | F12: 2.7 | G12: 3.4 | K12: Jun | L12: 2.8 | M12: 11.9 | N12: 2.7 | O12: 3.4
A13: Jul | B13: None | C13: 2.9 | D13: 5.6 | E13: None | F13: 2.9 | G13: 3.5 | K13: Jul | L13: 2.9 | M13: 5.6 | N13: 2.9 | O13: 3.5 | Q13: Maximum: for 1/2 hourly and daily periods use the highest value across all operational combustion lines for the month
A14: Aug | B14: None | C14: 3.1 | D14: 5.4 | E14: None | F14: 3.1 | G14: 3.7 | K14: Aug | L14: 3.1 | M14: 5.4 | N14: 3.1 | O14: 3.7
A15: Sep | B15: None | C15: 5 | D15: 15.4 | E15: None | F15: 4.6 | G15: 11.5 | K15: Sep | L15: 5 | M15: 15.4 | N15: 4.6 | O15: 11.5
A16: Oct | B16: None | C16: 7.2 | D16: 18.7 | E16: None | F16: 7.1 | G16: 9.8 | K16: Oct | L16: 7.2 | M16: 18.7 | N16: 7.1 | O16: 9.8
A17: Nov | B17: None | C17: 4.7 | D17: 8.6 | E17: None | F17: 4.7 | G17: 4.9 | K17: Nov | L17: 4.7 | M17: 8.6 | N17: 4.7 | O17: 4.9
A18: Dec | B18: None | C18: 3.9 | D18: 6.9 | E18: 15 | F18: 3.9 | G18: 4.8 | K18: Dec | L18: 3.9 | M18: 6.9 | N18: 3.9 | O18: 4.8
E19: * ELV came into force on 3 December 2023 | K19: Annual | L19: =AVERAGE(L7:L18) -> 3.883333333 | M19: =MAX(M7:M18) -> 18.7 | N19: =AVERAGE(N7:N18) -> 3.816666667 | O19: =MAX(O7:O18) -> 11.5
J21: =+A6 -> 2023 | K21: mg/Nm3 | L21: Monthly 1/2 hourly mean | M21: Monthly 1/2 hourly maximum | N21: Monthly daily mean | O21: Monthly daily maximum
J22: A2 | K22: Jan
K23: Feb
K24: Mar
K25: Apr
K26: May
K27: Jun
K28: Jul
K29: Aug
K30: Sep
K31: Oct
K32: Nov
K33: Dec
K34: Annual | L34: =AVERAGE(L22:L33) ->  | M34: =MAX(M22:M33) -> 0 | N34: =AVERAGE(N22:N33) ->  | O34: =MAX(O22:O33) -> 0
J36: =+A6 -> 2023 | K36: mg/Nm3 | L36: Monthly 1/2 hourly mean | M36: Monthly 1/2 hourly maximum | N36: Monthly daily mean | O36: Monthly daily maximum
J37: A3 | K37: Jan
K38: Feb
K39: Mar
K40: Apr
K41: May
K42: Jun
K43: Jul
K44: Aug
K45: Sep
K46: Oct
K47: Nov
A48: Comments : | K48: Dec
A49: An indicated ELV value of zero in the table above means that no ammonia limit is/was set in the permit. | K49: Annual | L49: =AVERAGE(L37:L48) ->  | M49: =MAX(M37:M48) -> 0 | N49: =AVERAGE(N37:N48) ->  | O49: =MAX(O37:O48) -> 0
J51: =+A6 -> 2023 | K51: mg/Nm3 | L51: Monthly 1/2 hourly mean | M51: Monthly 1/2 hourly maximum | N51: Monthly daily mean | O51: Monthly daily maximum
J52: A4 | K52: Jan
K53: Feb
K54: Mar
K55: Apr
K56: May
K57: Jun
K58: Jul
K59: Aug
K60: Sep
K61: Oct
K62: Nov
K63: Dec
K64: Annual | L64: =AVERAGE(L52:L63) ->  | M64: =MAX(M52:M63) -> 0 | N64: =AVERAGE(N52:N63) ->  | O64: =MAX(O52:O63) -> 0
J66: =+A6 -> 2023 | K66: mg/Nm3 | L66: Monthly 1/2 hourly mean | M66: Monthly 1/2 hourly maximum | N66: Monthly daily mean | O66: Monthly daily maximum
J67: A5 | K67: Jan
K68: Feb
K69: Mar
K70: Apr
K71: May
K72: Jun
K73: Jul
K74: Aug
K75: Sep
K76: Oct
K77: Nov
K78: Dec
K79: Annual | L79: =AVERAGE(L67:L78) ->  | M79: =MAX(M67:M78) -> 0 | N79: =AVERAGE(N67:N78) ->  | O79: =MAX(O67:O78) -> 0
